fUST/lending_fUST_20250519
["ID","MTS","AMOUNT","RATE_DAILY","PERIOD"]
[361641902,1747657857266,-509.35,0.0002452,4]
[361641903,1747657857275,-250.0,0.0002452,4]
[361641904,1747657857285,-430.0,0.0002452,4]
[361641905,1747657857295,-430.0,0.0002452,4]
[361641906,1747657857304,-4863.71,0.0002452,4]
[361641907,1747657857313,-529.6,0.0002452,4]
[361641908,1747657857323,-430.0,0.0002452,4]
[361641909,1747657857333,-430.0,0.0002452,4]
[361641910,1747657857342,-2199.85,0.0002452,4]
[361641911,1747657857352,-822.57,0.0002452,4]
[361641912,1747657857361,-3954.19,0.0002452,4]
[361641913,1747657857370,-430.0,0.0002452,4]
[361641914,1747657857380,-430.0,0.0002452,4]
[361641915,1747657857390,-570.49,0.0002452,4]
[361641916,1747657857400,-1161.2,0.0002452,4]
[361641917,1747657857410,-573.90453187,0.0002452,4]
[361641918,1747657857419,-563.24,0.0002452,4]
[361641919,1747657857428,-3061.38,0.0002452,4]
[361641920,1747657857438,-430.0,0.0002452,4]
[361641921,1747657857447,-430.0,0.0002452,4]
[361641922,1747657857457,-3293.69,0.0002452,4]
[361641923,1747657857467,-430.0,0.0002452,4]
[361641924,1747657857476,-693.59,0.0002452,4]
[361641925,1747657857485,-430.0,0.0002452,4]
[361641926,1747657857495,-430.0,0.0002452,4]
[361641927,1747657857504,-430.0,0.0002452,4]
[361641928,1747657857513,-430.0,0.0002452,4]
[361641929,1747657857523,-430.0,0.0002452,4]
[361641930,1747657857532,-430.0,0.0002452,4]
[361641931,1747657857542,-430.0,0.0002452,4]
[361641932,1747657857552,-430.0,0.0002452,4]
[361641933,1747657857561,-250.0,0.0002452,4]
[361641934,1747657857570,-430.0,0.0002452,4]
[361641935,1747657857579,-442.91,0.0002452,4]
[361641936,1747657857588,-430.0,0.0002452,4]
[361641937,1747657857598,-441.58,0.0002452,4]
[361641938,1747657857607,-1073.01,0.0002452,4]
[361641939,1747657857616,-430.0,0.0002452,4]
[361641940,1747657857626,-692.46,0.0002452,4]
[361641941,1747657857635,-1021.37,0.0002452,4]
[361641942,1747657857645,-779.47,0.0002452,4]
[361641943,1747657857654,-430.0,0.0002452,4]
[361641944,1747657857664,-2024.61,0.0002452,4]
[361641945,1747657857673,-430.0,0.0002452,4]
[361641946,1747657857683,-648.43,0.0002452,4]
[361641947,1747657857693,-814.03,0.0002452,4]
[361641948,1747657857702,-1561.33,0.0002452,4]
[361641949,1747657857713,-758.91,0.0002452,4]
[361641950,1747657857723,-430.0,0.0002452,4]
[361641951,1747657857732,-430.0,0.0002452,4]
[361641952,1747657857742,-893.03,0.0002452,4]
[361641953,1747657857752,-574.1,0.0002452,4]
[361641954,1747657857761,-430.0,0.0002452,4]
[361641955,1747657857770,-192.4,0.0002452,4]
[361641956,1747657857780,-585.13,0.0002452,4]
[361641957,1747657857790,-1478.85,0.0002452,4]
[361641958,1747657857799,-430.0,0.0002452,4]
[361641959,1747657857809,-430.0,0.0002452,4]
[361641960,1747657857818,-525.82,0.0002452,4]
[361641961,1747657857828,-669.24,0.0002452,4]
[361641962,1747657857837,-941.78,0.0002452,4]
[361641963,1747657857846,-151.0,0.0002452,7]
[361641964,1747657857855,-430.0,0.0002452,4]
[361641965,1747657857865,-1208.26,0.0002452,4]
[361641966,1747657857874,-443.3,0.0002452,4]
[361641967,1747657857884,-439.17,0.0002452,4]
[361641968,1747657857894,-430.0,0.0002452,4]
[361641969,1747657857904,-1082.41843096,0.00024555,11]
[361641970,1747657857913,-500.0,0.00024595,6]
[361641971,1747657857923,-105446.62740078,0.000246,7]
[361641972,1747657857937,-331.93565708,0.000246,7]
[361641973,1747657858169,-430.0,0.00024246,4]
[361641974,1747657858180,-248.67393402,0.00024383,4]
[361641975,1747657858192,-181.32606598,0.00024383,4]
[361641976,1747657858201,-430.0,0.0002452,4]
[361641977,1747657858211,-1870.17393402,0.000246,7]
[361641978,1747657858366,-4195.76775475,0.000246,7]
[361641979,1747657858377,-835.75878679,0.000246,7]
[361641980,1747657858561,-6597.8110164,0.000246,7]
[361641981,1747657858570,-47039.37422179,0.000246,2]
[361641988,1747658133658,259.52305973,0.00027,120]
[361641989,1747658148333,303.57271099,0.00027,120]
[361641990,1747658222226,10000.0,0.00011,2]
[361641991,1747658243651,1936.36758181,0.00024842,120]
[361642004,1747658888361,400.63,0.00024825,30]
[361642076,1747659037205,-622.22437337,0.00013562,2]
[361642078,1747659037258,-4377.77562663,0.00013562,2]
[361642079,1747659037267,-200.142411,0.00013699,2]
[361642080,1747659037278,-16359.09716117,0.0002,2]
[361642081,1747659037288,-200.142411,0.00020187,2]
[361642082,1747659037299,-480.0,0.00020374,2]
[361642083,1747659037309,-4504.1671961,0.00020375,2]
[361642084,1747659037320,-160.0,0.00020485,2]
[361642085,1747659037330,-8299.5035976,0.00020614,2]
[361642086,1747659037340,-212.35735062,0.00020946,2]
[361642087,1747659037349,-422.59250115,0.00020951,2]
[361642088,1747659037359,-500.0,0.00020987,2]
[361642089,1747659037368,-199.48801978,0.00020987,2]
[361642090,1747659037378,-500.0,0.00020987,2]
[361642091,1747659037387,-500.0,0.00020987,2]
[361642092,1747659037396,-500.0,0.00020987,2]
[361642093,1747659037406,-500.0,0.00020987,2]
[361642094,1747659037415,-471.77642521,0.00020987,2]
[361642095,1747659037424,-251.19458915,0.00020987,2]
[361642096,1747659037433,-500.0,0.00020987,2]
[361642097,1747659037442,-500.0,0.00020987,2]
[361642098,1747659037452,-500.0,0.00020987,2]
[361642099,1747659037461,-371.63805129,0.00020987,2]
[361642100,1747659037471,-500.0,0.00020987,2]
[361642101,1747659037480,-500.0,0.00020987,2]
[361642102,1747659037490,-500.0,0.00020987,2]
[361642103,1747659037499,-500.0,0.00020987,2]
[361642104,1747659037509,-500.0,0.00020987,2]
[361642105,1747659037519,-500.0,0.00020987,2]
[361642106,1747659037528,-500.0,0.00020987,2]
[361642107,1747659037538,-500.0,0.00020987,2]
[361642108,1747659037547,-500.0,0.00020987,2]
[361642109,1747659037557,-500.0,0.00020987,2]
[361642110,1747659037566,-500.0,0.00020987,2]
[361642111,1747659037576,-500.0,0.00020987,2]
[361642112,1747659037586,-500.0,0.00020987,2]
[361642113,1747659037596,-500.0,0.00020987,2]
[361642114,1747659037606,-500.0,0.00020987,2]
[361642115,1747659037616,-500.0,0.00020987,2]
[361642116,1747659037625,-500.0,0.00020987,2]
[361642117,1747659037634,-500.0,0.00020987,2]
[361642118,1747659037645,-500.0,0.00020987,2]
[361642119,1747659037655,-500.0,0.00020987,2]
[361642120,1747659037665,-500.0,0.00020987,2]
[361642121,1747659037675,-638.95545299,0.00020987,2]
[361642122,1747659037687,-500.0,0.00020987,2]
[361642123,1747659037698,-500.0,0.00020987,2]
[361642124,1747659037707,-500.0,0.00020987,2]
[361642125,1747659037717,-500.0,0.00020987,2]
[361642126,1747659037728,-500.0,0.00020987,2]
[361642127,1747659037737,-500.0,0.00020987,2]
[361642128,1747659037747,-500.0,0.00020987,2]
[361642129,1747659037757,-500.0,0.00020987,2]
[361642130,1747659037768,-500.0,0.00020987,2]
[361642131,1747659037780,-500.0,0.00020987,2]
[361642132,1747659037792,-500.0,0.00020987,2]
[361642133,1747659037803,-500.0,0.00020987,2]
[361642134,1747659037813,-500.0,0.00020987,2]
[361642135,1747659037823,-500.0,0.00020987,2]
[361642136,1747659037836,-500.0,0.00020987,2]
[361642137,1747659037848,-37995.97190724,0.00020988,2]
[361642143,1747659038544,-12004.02809276,0.00020988,2]
[361642144,1747659038554,-1801.82494811,0.00020988,2]
[361642145,1747659038833,-6889.92877859,0.00020988,2]
[361642146,1747659038843,-404.0,0.00021374,2]
[361642147,1747659038853,-600.0,0.00021657,2]
[361642148,1747659038862,-500.0,0.00021873,2]
[361642149,1747659038872,-500.0,0.00021898,2]
[361642150,1747659038881,-500.0,0.00021898,2]
[361642151,1747659038890,-500.0,0.00021898,2]
[361642152,1747659038899,-500.0,0.00021898,2]
[361642153,1747659038909,-359.60824771,0.00021898,2]
[361642154,1747659038919,-500.0,0.00021898,2]
[361642155,1747659038929,-575.26929125,0.00021898,2]
[361642156,1747659038938,-500.0,0.00021898,2]
[361642157,1747659038947,-539.760076,0.00021898,2]
[361642158,1747659038957,-500.0,0.00021898,2]
[361642159,1747659038966,-500.0,0.00021898,2]
[361642160,1747659038975,-500.0,0.00021898,2]
[361642161,1747659038984,-500.0,0.00021898,2]
[361642162,1747659038994,-500.0,0.00021898,2]
[361642163,1747659039004,-500.0,0.00021898,2]
[361642164,1747659039016,-500.0,0.00021898,2]
[361642165,1747659039026,-500.0,0.00021898,2]
[361642166,1747659039035,-144587.39113052,0.00021899,2]
[361642167,1747659039048,-3598.30003762,0.00021899,2]
[361642168,1747659039060,-6722.46285253,0.00021899,2]
[361642169,1747659039071,-9837.16085619,0.00021899,2]
[361642170,1747659039082,-1513.1600025,0.00021899,2]
[361642459,1747659043584,-5000.0,0.0002144,2]
[361642461,1747659043593,-13795.93139418,0.00021899,2]
[361642463,1747659043605,-4793.23660592,0.00021899,2]
[361642469,1747659043643,-762.31070831,0.00021899,2]
[361642471,1747659043656,-25464.51505,0.00021899,2]
[361642477,1747659043700,-4566.89689343,0.00021899,2]
[361642479,1747659043711,-29850.83184412,0.00021899,2]
[361642481,1747659043723,-927.52314604,0.00021899,2]
[361642787,1747659046786,-1992.25656816,0.00021899,2]
[361642796,1747659046856,-490.66197027,0.00021899,2]
[361643335,1747659780703,1261.53795928,0.0002737,120]
[361643354,1747660140100,10000.0,0.00011,2]
[361643360,1747660181543,10000.0,0.00011,2]
[361643431,1747660232716,-5000.0,0.00013562,2]
[361643433,1747660232726,-180.128169,0.00013699,2]
[361643435,1747660232735,-160.0,0.00019334,2]
[361643437,1747660232745,-1200.0,0.00019366,2]
[361643439,1747660232754,-300.0,0.00019366,2]
[361643441,1747660232763,-300.0,0.00019367,2]
[361643443,1747660232773,-300.0,0.00019367,2]
[361643446,1747660232782,-300.0,0.00019367,2]
[361643448,1747660232792,-422.59250115,0.00019367,2]
[361643452,1747660232801,-500.0,0.0001937,2]
[361643454,1747660232811,-500.0,0.0001937,2]
[361643456,1747660232820,-267.0683457,0.00019607,2]
[361643458,1747660232830,-27363.30304663,0.000199,2]
[361643681,1747660238509,-22636.69695337,0.000199,2]
[361643682,1747660238521,-802.51343161,0.000199,2]
[361643683,1747660238532,-174.40785559,0.00020071,2]
[361643684,1747660238545,-325.59214441,0.00020071,2]
[361643685,1747660238554,-295.20392185,0.00020071,2]
[361643686,1747660238567,-204.79607815,0.00020071,2]
[361643687,1747660238577,-500.0,0.00020071,2]
[361643688,1747660238587,-11.5973706,0.00020071,2]
[361643689,1747660238600,-258.24749372,0.00020071,2]
[361643690,1747660238610,-500.0,0.00020071,2]
[361643691,1747660238620,-54.81393192,0.00020071,2]
[361643692,1747660238632,-166.54994661,0.00020071,2]
[361643693,1747660238641,-356.16298221,0.00020071,2]
[361643694,1747660238653,-143.83701779,0.00020071,2]
[361643695,1747660238662,-500.0,0.00020071,2]
[361643696,1747660238672,-500.0,0.00020071,2]
[361643697,1747660238682,-500.0,0.00020071,2]
[361643698,1747660238691,-500.0,0.00020071,2]
[361643699,1747660238702,-500.0,0.00020071,2]
[361643700,1747660238712,-500.0,0.00020071,2]
[361643701,1747660238722,-500.0,0.00020071,2]
[361643702,1747660238732,-269.68701329,0.00020071,2]
[361643703,1747660238741,-500.0,0.00020071,2]
[361643704,1747660238751,-500.0,0.00020071,2]
[361643705,1747660238760,-500.0,0.00020071,2]
[361643706,1747660238770,-500.0,0.00020071,2]
[361643707,1747660238779,-500.0,0.00020071,2]
[361643708,1747660238789,-500.0,0.00020071,2]
[361643709,1747660238798,-500.0,0.00020071,2]
[361643710,1747660238808,-500.0,0.00020071,2]
[361643711,1747660238818,-500.0,0.00020071,2]
[361643712,1747660238828,-443.2945941,0.00020071,2]
[361643713,1747660238838,-500.0,0.00020071,2]
[361643714,1747660238847,-500.0,0.00020071,2]
[361643715,1747660238857,-500.0,0.00020071,2]
[361643716,1747660238867,-478.56211923,0.00020071,2]
[361643717,1747660238876,-500.0,0.00020071,2]
[361643718,1747660238886,-802.51343149,0.00020072,2]
[361643719,1747660238895,-180.128169,0.00020187,2]
[361643720,1747660238904,-495.3617404,0.00020245,2]
[361643721,1747660238917,-307.15169109,0.00020245,2]
[361643722,1747660238926,-802.51343149,0.00020417,3]
[361643723,1747660238936,-802.51343149,0.0002059,3]
[361643724,1747660238947,-285.16260791,0.00020762,3]
[361644063,1747660243689,-5000.0,0.00019871,2]
[361644065,1747660243698,-517.35082358,0.00020762,3]
[361644067,1747660243708,-802.51343149,0.00020934,4]
[361644069,1747660243717,-624.52179193,0.0002105,2]
[361644071,1747660243726,-420.0,0.00021102,2]
[361644073,1747660243736,-802.51343149,0.00021107,4]
[361644075,1747660243745,-624.52179193,0.00021194,2]
[361644077,1747660243754,-802.51343149,0.00021279,5]
[361644079,1747660243763,-802.51343149,0.00021452,5]
[361644081,1747660243772,-624.52179195,0.00021486,2]
[361644083,1747660243782,-802.51343149,0.00021624,5]
[361644085,1747660243791,-153.133,0.00021677,2]
[361644088,1747660243800,-802.51343149,0.00021797,6]
[361644091,1747660243809,-939.93052741,0.00021899,2]
[361644094,1747660243820,-24050.87369549,0.00021899,2]
[361644096,1747660243829,-802.51343149,0.00021969,6]
[361644098,1747660243839,-800.0,0.00022,2]
[361644100,1747660243849,-170.0,0.00022,2]
[361644102,1747660243858,-1999.48096735,0.00022002,2]
[361644104,1747660243867,-1497.07,0.000221,7]
[361644106,1747660243877,-802.51343149,0.00022141,6]
[361644108,1747660243886,-802.51343149,0.00022314,7]
[361644110,1747660243896,-802.51343149,0.00022486,7]
[361644112,1747660243906,-802.51343149,0.00022659,7]
[361644114,1747660243915,-802.51343149,0.00022831,8]
[361644116,1747660243925,-365.6620647,0.00022904,2]
[361644118,1747660243934,-363.4438647,0.00022904,2]
[361644120,1747660243943,-363.4438647,0.00022904,2]
[361644122,1747660243954,-363.4438647,0.00022904,2]
[361644124,1747660243963,-363.4438647,0.00022904,2]
[361644126,1747660243971,-587.0,0.00022993,2]
[361644128,1747660243980,-900.0,0.00023,3]
[361644130,1747660243990,-802.51343149,0.00023003,8]
[361644132,1747660244000,-170.0,0.00023014,7]
[361644134,1747660244009,-802.51343149,0.00023176,8]
[361644136,1747660244019,-1497.07,0.000232,7]
[361644138,1747660244028,-802.51343149,0.00023348,9]
[361644140,1747660244038,-802.51343149,0.00023521,9]
[361644142,1747660244047,-802.51343149,0.00023693,9]
[361644144,1747660244056,-17261.24643532,0.00023832,2]
[361644146,1747660244066,-500.0,0.00023834,2]
[361644148,1747660244075,-601.72577339,0.00023834,2]
[361644150,1747660244084,-500.0,0.00023834,2]
[361644152,1747660244093,-500.0,0.00023834,2]
[361644154,1747660244103,-500.0,0.00023834,2]
[361644156,1747660244112,-500.0,0.00023834,2]
[361644158,1747660244121,-502.68850388,0.00023834,2]
[361644160,1747660244130,-500.0,0.00023834,2]
[361644162,1747660244139,-500.0,0.00023834,2]
[361644164,1747660244148,-327.8320532,0.00023834,2]
[361644166,1747660244157,-500.0,0.00023834,2]
[361644168,1747660244167,-500.0,0.00023834,2]
[361644170,1747660244176,-400.0,0.00023835,4]
[361644172,1747660244186,-400.0,0.00023835,4]
[361644174,1747660244195,-400.44101049,0.00023835,4]
[361644176,1747660244208,-432.49311301,0.00023835,4]
[361644178,1747660244216,-220.0,0.00023835,4]
[361644180,1747660244226,-430.0,0.00023835,4]
[361644182,1747660244235,-402.00609856,0.00023835,4]
[361644184,1747660244244,-430.0,0.00023835,4]
[361644186,1747660244253,-404.68059444,0.00023835,4]
[361644188,1747660244262,-400.0,0.00023835,4]
[361644190,1747660244271,-430.0,0.00023835,4]
[361644192,1747660244281,-400.0,0.00023835,4]
[361644194,1747660244290,-236.93475173,0.00023835,4]
[361644196,1747660244300,-430.0,0.00023835,4]
[361644198,1747660244309,-430.0,0.00023835,4]
[361644200,1747660244318,-430.0,0.00023835,4]
[361644202,1747660244329,-430.0,0.00023835,4]
[361644204,1747660244338,-400.0,0.00023835,4]
[361644207,1747660244347,-519.34,0.00023835,4]
[361644209,1747660244356,-430.0,0.00023835,4]
[361644211,1747660244365,-400.0,0.00023835,4]
[361644213,1747660244376,-500.77010991,0.00023835,4]
[361644215,1747660244385,-565.44075881,0.00023835,4]
[361644217,1747660244394,-430.0,0.00023835,4]
[361644219,1747660244404,-430.0,0.00023835,4]
[361644221,1747660244414,-300.60506843,0.00023835,4]
[361644223,1747660244423,-400.0,0.00023835,4]
[361644225,1747660244433,-430.0,0.00023835,4]
[361644227,1747660244442,-430.0,0.00023835,4]
[361644229,1747660244451,-400.0,0.00023835,4]
[361644231,1747660244461,-400.0,0.00023835,4]
[361644233,1747660244470,-400.0,0.00023835,4]
[361644234,1747660244480,-400.0,0.00023835,4]
[361644236,1747660244489,-370.0,0.00023835,4]
[361644238,1747660244499,-400.0,0.00023835,4]
[361644240,1747660244508,-400.0,0.00023835,4]
[361644242,1747660244518,-400.0,0.00023835,4]
[361644245,1747660244531,-403.07855009,0.00023835,4]
[361644247,1747660244540,-430.0,0.00023835,4]
[361644249,1747660244550,-430.0,0.00023835,4]
[361644251,1747660244560,-430.0,0.00023835,4]
[361644253,1747660244569,-400.0,0.00023835,4]
[361644255,1747660244578,-430.0,0.00023835,4]
[361644257,1747660244587,-403.35612526,0.00023835,4]
[361644259,1747660244597,-430.0,0.00023835,4]
[361644261,1747660244607,-400.0,0.00023835,4]
[361644263,1747660244617,-430.0,0.00023835,4]
[361644265,1747660244626,-400.0,0.00023835,4]
[361644267,1747660244636,-400.0,0.00023835,4]
[361644269,1747660244645,-400.0,0.00023835,4]
[361644271,1747660244654,-400.0,0.00023835,4]
[361644273,1747660244664,-400.0,0.00023835,4]
[361644275,1747660244674,-400.0,0.00023835,4]
[361644277,1747660244683,-400.0,0.00023835,4]
[361644279,1747660244692,-400.0,0.00023835,4]
[361644281,1747660244702,-400.0,0.00023835,4]
[361644283,1747660244712,-401.48027011,0.00023835,4]
[361644285,1747660244722,-400.0,0.00023835,4]
[361644287,1747660244731,-501.66015232,0.00023835,4]
[361644289,1747660244740,-400.0,0.00023835,4]
[361644291,1747660244749,-430.0,0.00023835,4]
[361644293,1747660244759,-500.0,0.00023835,2]
[361644295,1747660244769,-400.0,0.00023835,4]
[361644297,1747660244778,-400.0,0.00023835,4]
[361644299,1747660244787,-400.0,0.00023835,4]
[361644301,1747660244796,-400.0,0.00023835,4]
[361644303,1747660244805,-430.0,0.00023835,4]
[361644305,1747660244815,-1012.85984742,0.00023835,4]
[361644307,1747660244825,-430.0,0.00023835,4]
[361644309,1747660244834,-430.0,0.00023835,4]
[361644311,1747660244844,-342.02183518,0.00023835,4]
[361644313,1747660244853,-430.0,0.00023835,4]
[361644315,1747660244862,-430.0,0.00023835,4]
[361644317,1747660244871,-400.0,0.00023835,4]
[361644319,1747660244881,-430.0,0.00023835,4]
[361644321,1747660244890,-400.0,0.00023835,4]
[361644323,1747660244899,-430.0,0.00023835,4]
[361644325,1747660244908,-529.54462458,0.00023835,4]
[361644327,1747660244917,-430.0,0.00023835,4]
[361644329,1747660244926,-430.0,0.00023835,4]
[361644331,1747660244936,-403.66588441,0.00023835,4]
[361644333,1747660244945,-400.0,0.00023835,4]
[361644335,1747660244955,-400.0,0.00023835,4]
[361644338,1747660244968,-430.0,0.00023835,4]
[361644340,1747660244978,-220.0,0.00023835,4]
[361644342,1747660244987,-400.0,0.00023835,4]
[361644344,1747660244997,-430.0,0.00023835,4]
[361644346,1747660245006,-400.0,0.00023835,4]
[361644348,1747660245016,-400.0,0.00023835,4]
[361644350,1747660245025,-400.0,0.00023835,4]
[361644352,1747660245035,-400.0,0.00023835,4]
[361644354,1747660245044,-400.0,0.00023835,4]
[361644356,1747660245053,-400.0,0.00023835,4]
[361644358,1747660245062,-430.0,0.00023835,4]
[361644360,1747660245071,-554.79,0.00023835,4]
[361644362,1747660245080,-400.0,0.00023835,4]
[361644364,1747660245090,-413.95301629,0.00023835,4]
[361644366,1747660245103,-430.0,0.00023835,4]
[361644368,1747660245112,-430.0,0.00023835,4]
[361644370,1747660245121,-400.0,0.00023835,4]
[361644372,1747660245130,-400.0,0.00023835,4]
[361644374,1747660245140,-400.0,0.00023835,4]
[361644376,1747660245148,-430.0,0.00023835,4]
[361644378,1747660245157,-400.0,0.00023835,4]
[361644380,1747660245165,-400.0,0.00023835,4]
[361644382,1747660245174,-430.0,0.00023835,4]
[361644384,1747660245183,-391.78799999,0.00023835,4]
[361644386,1747660245191,-430.0,0.00023835,4]
[361644388,1747660245199,-659.94,0.00023835,4]
[361644390,1747660245209,-430.0,0.00023835,4]
[361644392,1747660245217,-430.0,0.00023835,4]
[361644394,1747660245226,-400.0,0.00023835,4]
[361644396,1747660245235,-400.0,0.00023835,4]
[361644398,1747660245245,-400.0,0.00023835,4]
[361644400,1747660245254,-430.0,0.00023835,4]
[361644402,1747660245263,-504.42079598,0.00023835,4]
[361644404,1747660245272,-400.0,0.00023835,4]
[361644406,1747660245280,-400.0,0.00023835,4]
[361644408,1747660245289,-430.0,0.00023835,4]
[361644410,1747660245297,-400.0,0.00023835,4]
[361644412,1747660245306,-430.0,0.00023835,4]
[361644414,1747660245315,-400.0,0.00023835,4]
[361644416,1747660245324,-430.0,0.00023835,4]
[361644418,1747660245333,-400.0,0.00023835,4]
[361644420,1747660245342,-430.0,0.00023835,4]
[361644422,1747660245352,-430.0,0.00023835,4]
[361644424,1747660245361,-400.0,0.00023835,4]
[361644426,1747660245371,-400.0,0.00023835,4]
[361644428,1747660245380,-1187.11,0.00023835,4]
[361644430,1747660245389,-458.19504366,0.00023835,4]
[361644433,1747660245399,-400.0,0.00023835,4]
[361644435,1747660245408,-400.0,0.00023835,4]
[361644437,1747660245417,-430.0,0.00023835,4]
[361644439,1747660245426,-400.0,0.00023835,4]
[361644441,1747660245434,-432.71,0.00023835,4]
[361644443,1747660245443,-435.6,0.00023835,4]
[361644445,1747660245452,-400.0,0.00023835,4]
[361644447,1747660245461,-400.0,0.00023835,4]
[361644449,1747660245470,-430.0,0.00023835,4]
[361644451,1747660245479,-430.0,0.00023835,4]
[361644452,1747660245488,-400.0,0.00023835,4]
[361644454,1747660245497,-430.0,0.00023835,4]
[361644456,1747660245507,-400.0,0.00023835,4]
[361644459,1747660245516,-405.09134318,0.00023835,4]
[361644460,1747660245528,-430.0,0.00023835,4]
[361644462,1747660245538,-430.0,0.00023835,4]
[361644465,1747660245547,-430.0,0.00023835,4]
[361644467,1747660245556,-430.0,0.00023835,4]
[361644468,1747660245567,-430.0,0.00023835,4]
[361644471,1747660245577,-400.0,0.00023835,4]
[361644473,1747660245587,-430.0,0.00023835,4]
[361644475,1747660245596,-430.0,0.00023835,4]
[361644477,1747660245605,-519.02725028,0.00023835,4]
[361644479,1747660245615,-430.0,0.00023835,4]
[361644481,1747660245623,-450.0,0.00023835,4]
[361644483,1747660245632,-463.8,0.00023835,4]
[361644485,1747660245641,-400.0,0.00023835,4]
[361644487,1747660245649,-397.13217263,0.00023835,4]
[361644508,1747660246879,-69.45689843,0.00023835,4]
[361644509,1747660246889,-392.68910158,0.00023835,4]
[361644510,1747660246901,-7.95095237,0.00023835,4]
[361644511,1747660246910,-232.66,0.00023835,4]
[361644512,1747660246920,-430.0,0.00023835,4]
[361644513,1747660246929,-430.0,0.00023835,4]
[361644514,1747660246939,-450.0,0.00023835,4]
[361644515,1747660246948,-430.0,0.00023835,2]
[361644516,1747660246958,-231.32985612,0.00023835,4]
[361644864,1747660470740,10000.0,0.00011,2]
[361644865,1747660547305,10000.0,0.00011,2]
[361644866,1747660583878,10000.0,0.00011,2]
[361644867,1747660609865,764.30306458,0.000273,120]
[361644869,1747660706176,300.0,0.00011,2]
[361644871,1747660845505,10000.0,0.00011,2]
[361644872,1747660901459,10000.0,0.00011,2]
[361644873,1747660930588,10000.0,0.00011,2]
[361644874,1747660949116,10000.0,0.00011,2]
[361644876,1747660969397,10000.0,0.00011,2]
[361644877,1747661005981,10000.0,0.00011,2]
[361644878,1747661023097,10000.0,0.00011,2]
[361644881,1747661295691,167.23158185,0.00010618,2]
[361644885,1747661321149,1000.0,0.0001,2]
[361644886,1747661322199,3583.59115948,0.00024844,120]
[361644888,1747661326724,40021.62854082,0.0001,2]
[361644895,1747661400178,756.53637795,0.00027397,120]
[361644899,1747661417513,500.0,0.00023953,120]
[361644900,1747661418564,500.0,0.00023953,120]
[361644901,1747661419988,500.0,0.00023953,120]
[361644902,1747661420786,500.0,0.00023953,120]
[361644903,1747661421583,500.0,0.00023953,120]
[361644904,1747661422641,500.0,0.00023953,120]
[361644905,1747661423573,500.0,0.00023953,120]
[361644906,1747661424960,500.0,0.00023953,120]
[361644907,1747661425977,500.0,0.00023953,120]
[361644908,1747661426583,500.0,0.00023953,120]
[361644909,1747661427384,500.0,0.00023953,120]
[361644910,1747661428182,500.0,0.00023953,120]
[361644911,1747661429081,500.0,0.00023953,120]
[361644912,1747661430182,500.0,0.00023953,120]
[361644913,1747661430801,200.0,0.00024258,120]
[361644914,1747661430999,500.0,0.00023953,120]
[361644949,1747661431730,-518.7636901,0.00013562,2]
[361644956,1747661431786,500.0,0.00023953,120]
[361644958,1747661431799,-4481.2363099,0.00013562,2]
[361644960,1747661431808,-172.566045,0.00013699,2]